[Event "Late-Titled-Tuesday-Blitz-October-17-2023"]
[Site "Chess.com"]
[Date "2023.10.17"]
[Round "4"]
[White "TigrVShlyape"]
[Black "Emp3rador"]
[Result "1-0"]
[WhiteElo "2816"]
[BlackElo "2531"]
[TimeControl "180+1"]
[EndTime "14:38:25 PDT"]
[Termination "TigrVShlyape won on time"]

1. e4 {[%clk 0:03:00.9]} 1... e6 {[%clk 0:02:59.1]} 2. d4 {[%clk 0:03:00.5]}
2... d5 {[%clk 0:02:59.6]} 3. e5 {[%clk 0:03:00.9]} 3... c5 {[%clk 0:02:59.4]}
4. c3 {[%clk 0:03:00.9]} 4... Qb6 {[%clk 0:02:59.6]} 5. Nf3 {[%clk 0:02:53.3]}
5... Bd7 {[%clk 0:02:58.7]} 6. Na3 {[%clk 0:02:47.6]} 6... cxd4 {[%clk
0:02:31.2]} 7. cxd4 {[%clk 0:02:47.1]} 7... Nc6 {[%clk 0:02:07.5]} 8. Nc2 {[%clk
0:02:45]} 8... Nb4 {[%clk 0:02:04.9]} 9. Nxb4 {[%clk 0:02:41.4]} 9... Bxb4+
{[%clk 0:02:04.6]} 10. Bd2 {[%clk 0:02:41.7]} 10... Ne7 {[%clk 0:01:51.7]} 11.
Bxb4 {[%clk 0:02:40.5]} 11... Qxb4+ {[%clk 0:01:51.2]} 12. Qd2 {[%clk
0:02:40.9]} 12... Qb6 {[%clk 0:01:48.4]} 13. Be2 {[%clk 0:02:40.9]} 13... Bb5
{[%clk 0:01:47.2]} 14. Qb4 {[%clk 0:02:39.4]} 14... Bxe2 {[%clk 0:01:41.9]} 15.
Qxb6 {[%clk 0:02:38.6]} 15... axb6 {[%clk 0:01:42.3]} 16. Kxe2 {[%clk
0:02:39.2]} 16... h6 {[%clk 0:01:39.5]} 17. a4 {[%clk 0:02:22.4]} 17... Kd7
{[%clk 0:01:39.2]} 18. Kd3 {[%clk 0:02:21]} 18... Rhc8 {[%clk 0:01:38.5]} 19. b3
{[%clk 0:02:00.8]} 19... Nc6 {[%clk 0:01:35.3]} 20. Rhc1 {[%clk 0:01:59.8]}
20... Nb4+ {[%clk 0:01:34.6]} 21. Kd2 {[%clk 0:01:59.3]} 21... Rc6 {[%clk
0:01:33.6]} 22. Ne1 {[%clk 0:01:50.9]} 22... Rac8 {[%clk 0:01:30.7]} 23. h4
{[%clk 0:01:46.5]} 23... h5 {[%clk 0:00:59]} 24. g3 {[%clk 0:01:41.8]} 24... g6
{[%clk 0:00:58.5]} 25. Rxc6 {[%clk 0:01:31.9]} 25... bxc6 {[%clk 0:00:46.1]} 26.
Nd3 {[%clk 0:01:28.4]} 26... Nxd3 {[%clk 0:00:40.6]} 27. Kxd3 {[%clk 0:01:28.4]}
27... c5 {[%clk 0:00:32.9]} 28. Rc1 {[%clk 0:01:20.1]} 28... Kc6 {[%clk
0:00:25.8]} 29. b4 {[%clk 0:01:17.2]} 29... c4+ {[%clk 0:00:25.4]} 30. Kc3
{[%clk 0:01:16.7]} 30... Ra8 {[%clk 0:00:24.9]} 31. b5+ {[%clk 0:01:14]} 31...
Kb7 {[%clk 0:00:22.3]} 32. Kb4 {[%clk 0:01:14.3]} 32... Rc8 {[%clk 0:00:15.1]}
33. Rc3 {[%clk 0:01:14.2]} 33... Rc7 {[%clk 0:00:13.4]} 34. Rf3 {[%clk
0:01:14.1]} 34... Rd7 {[%clk 0:00:08.7]} 35. Rf6 {[%clk 0:01:12.1]} 35... Rc7
{[%clk 0:00:08.6]} 36. Kc3 {[%clk 0:01:11.9]} 36... Kc8 {[%clk 0:00:08.7]} 37.
f3 {[%clk 0:01:11.7]} 37... Ra7 {[%clk 0:00:07.7]} 38. Kb4 {[%clk 0:01:08.6]}
38... Rc7 {[%clk 0:00:07.6]} 39. Kc3 {[%clk 0:01:08.9]} 39... Ra7 {[%clk
0:00:07.7]} 40. g4 {[%clk 0:00:53.3]} 40... hxg4 {[%clk 0:00:03.8]} 41. fxg4
{[%clk 0:00:53.3]} 41... Rxa4 {[%clk 0:00:04.4]} 42. h5 {[%clk 0:00:49.3]} 42...
Ra3+ {[%clk 0:00:04.3]} 43. Kc2 {[%clk 0:00:49.2]} 43... Rg3 {[%clk 0:00:02.3]}
44. h6 {[%clk 0:00:46]} 1-0

[Event "Late-Titled-Tuesday-Blitz-October-17-2023"]
[Site "Chess.com"]
[Date "2023.10.17"]
[Round "4"]
[White "JSlaby"]
[Black "Mykola-Bortnyk"]
[Result "0-1"]
[WhiteElo "2586"]
[BlackElo "2983"]
[TimeControl "180+1"]
[EndTime "14:38:28 PDT"]
[Termination "Mykola-Bortnyk won on time"]

1. e4 {[%clk 0:02:54.1]} 1... Nf6 {[%clk 0:02:53.1]} 2. e5 {[%clk 0:02:50]} 2...
Nd5 {[%clk 0:02:53.3]} 3. d4 {[%clk 0:02:47.9]} 3... d6 {[%clk 0:02:53.9]} 4.
Bc4 {[%clk 0:02:45.6]} 4... Nb6 {[%clk 0:02:53.8]} 5. Bb3 {[%clk 0:02:45.6]}
5... dxe5 {[%clk 0:02:54.1]} 6. Qh5 {[%clk 0:02:43.6]} 6... e6 {[%clk 0:02:54]}
7. dxe5 {[%clk 0:02:42.7]} 7... c5 {[%clk 0:02:54.2]} 8. Nd2 {[%clk 0:02:22.1]}
8... Qc7 {[%clk 0:02:51.7]} 9. Nc4 {[%clk 0:02:12.1]} 9... Bd7 {[%clk
0:02:45.4]} 10. Nf3 {[%clk 0:02:08.9]} 10... Bc6 {[%clk 0:02:38.4]} 11. O-O
{[%clk 0:02:03.8]} 11... g6 {[%clk 0:02:27.7]} 12. Qg4 {[%clk 0:02:01.9]} 12...
h5 {[%clk 0:02:24]} 13. Qg3 {[%clk 0:01:58.5]} 13... Nxc4 {[%clk 0:02:21.4]} 14.
Bxc4 {[%clk 0:01:55.7]} 14... b5 {[%clk 0:02:17.6]} 15. Be2 {[%clk 0:01:45.8]}
15... Be7 {[%clk 0:02:15]} 16. Bg5 {[%clk 0:01:42.4]} 16... Bxg5 {[%clk
0:01:51.1]} 17. Qxg5 {[%clk 0:01:41.1]} 17... Qe7 {[%clk 0:01:49.4]} 18. Qf4
{[%clk 0:01:36.3]} 18... Nd7 {[%clk 0:01:48.5]} 19. Rfd1 {[%clk 0:01:33.4]}
19... O-O {[%clk 0:01:31.3]} 20. Rd6 {[%clk 0:01:31.2]} 20... Bxf3 {[%clk
0:01:30.6]} 21. Bxf3 {[%clk 0:01:30.6]} 21... Rad8 {[%clk 0:01:30.8]} 22. Rad1
{[%clk 0:01:26]} 22... Nb6 {[%clk 0:01:21.6]} 23. h4 {[%clk 0:01:11]} 23... Nc4
{[%clk 0:01:18.4]} 24. b3 {[%clk 0:00:37.3]} 24... Nxd6 {[%clk 0:01:14.8]} 25.
exd6 {[%clk 0:00:38.2]} 25... Qd7 {[%clk 0:01:11.1]} 26. Bxh5 {[%clk 0:00:38.1]}
26... e5 {[%clk 0:00:59.6]} 27. Qxe5 {[%clk 0:00:34.6]} 27... Qe6 {[%clk
0:00:57]} 28. Qxe6 {[%clk 0:00:29.5]} 28... fxe6 {[%clk 0:00:57.9]} 29. Bxg6
{[%clk 0:00:29.7]} 29... Rf4 {[%clk 0:00:58.7]} 30. d7 {[%clk 0:00:13.2]} 30...
Rxh4 {[%clk 0:00:54.5]} 31. Be8 {[%clk 0:00:12.1]} 31... Kf8 {[%clk 0:00:53]}
32. Re1 {[%clk 0:00:11.4]} 32... Ke7 {[%clk 0:00:53.3]} 33. g3 {[%clk
0:00:11.6]} 33... Rd4 {[%clk 0:00:53.3]} 34. Re5 {[%clk 0:00:11.5]} 34... Kd6
{[%clk 0:00:52.6]} 35. Rh5 {[%clk 0:00:11.2]} 35... Rd2 {[%clk 0:00:53]} 36. b4
{[%clk 0:00:08.4]} 36... Rxc2 {[%clk 0:00:50.5]} 37. bxc5+ {[%clk 0:00:06]}
37... Rxc5 {[%clk 0:00:51.4]} 38. Rh4 {[%clk 0:00:05.8]} 38... a5 {[%clk
0:00:51.6]} 39. Rd4+ {[%clk 0:00:05.4]} 39... Ke7 {[%clk 0:00:51.7]} 40. Kg2
{[%clk 0:00:04.2]} 40... b4 {[%clk 0:00:51.3]} 41. f4 {[%clk 0:00:04]} 41...
Rc2+ {[%clk 0:00:51.3]} 42. Kf3 {[%clk 0:00:04.4]} 42... Rxa2 {[%clk 0:00:52]}
43. f5 {[%clk 0:00:04.8]} 43... exf5 {[%clk 0:00:52.3]} 44. Rd5 {[%clk
0:00:04.4]} 44... b3 {[%clk 0:00:52]} 45. Re5+ {[%clk 0:00:04.7]} 45... Kd6
{[%clk 0:00:52.4]} 46. Rxf5 {[%clk 0:00:04.7]} 46... b2 {[%clk 0:00:52.5]} 47.
Rb5 {[%clk 0:00:04.9]} 47... a4 {[%clk 0:00:53.1]} 48. Rb6+ {[%clk 0:00:02.3]}
48... Kc7 {[%clk 0:00:53.1]} 49. Rb4 {[%clk 0:00:02.3]} 49... Ra3+ {[%clk
0:00:53.1]} 0-1

[Event "Late-Titled-Tuesday-Blitz-October-17-2023"]
[Site "Chess.com"]
[Date "2023.10.17"]
[Round "4"]
[White "Dhaydon19"]
[Black "BrandonJiang123456"]
[Result "1-0"]
[WhiteElo "2532"]
[BlackElo "2272"]
[TimeControl "180+1"]
[EndTime "14:38:34 PDT"]
[Termination "Dhaydon19 won on time"]

1. e4 {[%clk 0:03:00.9]} 1... c5 {[%clk 0:02:55.8]} 2. Nc3 {[%clk 0:03:00.5]}
2... Nc6 {[%clk 0:02:46.2]} 3. g3 {[%clk 0:02:59.7]} 3... e6 {[%clk 0:02:42.4]}
4. Bg2 {[%clk 0:02:59.8]} 4... Nge7 {[%clk 0:02:40.4]} 5. d3 {[%clk 0:02:59.9]}
5... d5 {[%clk 0:02:39.9]} 6. Nge2 {[%clk 0:02:59.2]} 6... f6 {[%clk 0:02:39.2]}
7. exd5 {[%clk 0:02:58.2]} 7... exd5 {[%clk 0:02:39.3]} 8. Nf4 {[%clk
0:02:58.9]} 8... d4 {[%clk 0:02:37]} 9. Ncd5 {[%clk 0:02:58.8]} 9... Nxd5 {[%clk
0:02:36.2]} 10. Nxd5 {[%clk 0:02:58.7]} 10... Bd6 {[%clk 0:02:25.7]} 11. Qh5+
{[%clk 0:02:57.3]} 11... g6 {[%clk 0:02:22.1]} 12. Qh6 {[%clk 0:02:53.8]} 12...
Bf8 {[%clk 0:02:07.9]} 13. Qf4 {[%clk 0:02:52.5]} 13... Kf7 {[%clk 0:01:40.2]}
14. O-O {[%clk 0:02:48.3]} 14... Bd6 {[%clk 0:01:36]} 15. Qh4 {[%clk 0:02:39.2]}
15... Be6 {[%clk 0:01:23.3]} 16. Nf4 {[%clk 0:02:37.1]} 16... Bf5 {[%clk
0:01:07.7]} 17. Bd5+ {[%clk 0:02:31.5]} 17... Kg7 {[%clk 0:01:07.5]} 18. Ne6+
{[%clk 0:02:13.6]} 18... Bxe6 {[%clk 0:01:05.4]} 19. Bxe6 {[%clk 0:02:08.2]}
19... Re8 {[%clk 0:00:59.5]} 20. Qh6+ {[%clk 0:02:02.8]} 20... Kh8 {[%clk
0:00:57.8]} 21. Bf7 {[%clk 0:02:02.7]} 21... Bf8 {[%clk 0:00:55.6]} 22. Qh3
{[%clk 0:02:00.5]} 22... Qc8 {[%clk 0:00:50.7]} 23. Qh4 {[%clk 0:01:55.3]} 23...
g5 {[%clk 0:00:46.7]} 24. Qh5 {[%clk 0:01:46.8]} 24... Re7 {[%clk 0:00:45.4]}
25. Bd2 {[%clk 0:01:46.5]} 25... Ne5 {[%clk 0:00:38.5]} 26. Bd5 {[%clk
0:01:43.8]} 26... Qd7 {[%clk 0:00:26.3]} 27. Be4 {[%clk 0:01:42.1]} 27... Rg7
{[%clk 0:00:19.1]} 28. f4 {[%clk 0:01:37.6]} 28... gxf4 {[%clk 0:00:18.4]} 29.
Bxf4 {[%clk 0:01:35.7]} 29... Bd6 {[%clk 0:00:12.2]} 30. Bh6 {[%clk 0:01:32.7]}
30... Re7 {[%clk 0:00:10.2]} 31. Rxf6 {[%clk 0:01:29.7]} 31... Rg8 {[%clk
0:00:08]} 32. Bf8 {[%clk 0:01:25.3]} 32... Rf7 {[%clk 0:00:04.2]} 33. Rxf7
{[%clk 0:01:23.1]} 33... Qxf7 {[%clk 0:00:02.7]} 34. Qxf7 {[%clk 0:01:18.6]}
34... Nxf7 {[%clk 0:00:02.6]} 35. Bxd6 {[%clk 0:01:19.3]} 35... Nxd6 {[%clk
0:00:02.6]} 36. Bd5 {[%clk 0:01:18.7]} 36... Re8 {[%clk 0:00:03.2]} 37. Kf2
{[%clk 0:01:17.2]} 37... Kg7 {[%clk 0:00:03.5]} 38. Re1 {[%clk 0:01:16.1]} 38...
Rf8+ {[%clk 0:00:03.9]} 39. Kg2 {[%clk 0:01:16]} 39... Kf6 {[%clk 0:00:02]} 40.
Rf1+ {[%clk 0:01:15.4]} 40... Ke7 {[%clk 0:00:02]} 41. Rxf8 {[%clk 0:01:15.4]}
41... Kxf8 {[%clk 0:00:02.7]} 42. g4 {[%clk 0:01:15.9]} 42... Ke7 {[%clk
0:00:02.9]} 43. Kg3 {[%clk 0:01:15.8]} 43... b6 {[%clk 0:00:03.1]} 44. Kf4
{[%clk 0:01:15.8]} 44... Kf6 {[%clk 0:00:03.6]} 45. g5+ {[%clk 0:01:14.2]} 45...
Kg6 {[%clk 0:00:03.8]} 46. Be4+ {[%clk 0:01:13.3]} 46... Kg7 {[%clk 0:00:02.3]}
47. h4 {[%clk 0:01:12.2]} 47... Nf7 {[%clk 0:00:02.8]} 48. h5 {[%clk 0:01:12]}
48... Nd8 {[%clk 0:00:02.8]} 49. h6+ {[%clk 0:01:11.9]} 49... Kg8 {[%clk
0:00:02.8]} 50. Ke5 {[%clk 0:01:11.9]} 50... Nf7+ {[%clk 0:00:02.8]} 51. Kf6
{[%clk 0:01:12.5]} 51... Nd6 {[%clk 0:00:02.9]} 52. Bd5+ {[%clk 0:01:08.7]}
52... Kh8 {[%clk 0:00:01.2]} 53. a4 {[%clk 0:01:01.3]} 1-0

[Event "Late-Titled-Tuesday-Blitz-October-17-2023"]
[Site "Chess.com"]
[Date "2023.10.17"]
[Round "4"]
[White "Polish_fighter3000"]
[Black "vladislavkovalev"]
[Result "1-0"]
[WhiteElo "3060"]
[BlackElo "2864"]
[TimeControl "180+1"]
[EndTime "14:38:35 PDT"]
[Termination "Polish_fighter3000 won on time"]

1. d4 {[%clk 0:03:00.9]} 1... Nf6 {[%clk 0:03:00.1]} 2. Nf3 {[%clk 0:03:00.7]}
2... e6 {[%clk 0:03:00.4]} 3. Bf4 {[%clk 0:03:01.3]} 3... d5 {[%clk 0:03:00.3]}
4. e3 {[%clk 0:03:01.4]} 4... c5 {[%clk 0:03:01]} 5. c3 {[%clk 0:03:00.7]} 5...
Nc6 {[%clk 0:03:01.6]} 6. Nbd2 {[%clk 0:03:00.5]} 6... cxd4 {[%clk 0:03:02.1]}
7. exd4 {[%clk 0:03:00.2]} 7... Nh5 {[%clk 0:03:02.5]} 8. Be3 {[%clk 0:02:59.2]}
8... Bd6 {[%clk 0:03:01.8]} 9. Bd3 {[%clk 0:02:59.2]} 9... Nf4 {[%clk
0:03:01.1]} 10. Bxf4 {[%clk 0:02:59.4]} 10... Bxf4 {[%clk 0:03:02]} 11. O-O
{[%clk 0:02:59.8]} 11... O-O {[%clk 0:02:57.3]} 12. Re1 {[%clk 0:02:59.4]} 12...
g6 {[%clk 0:02:45]} 13. Nf1 {[%clk 0:02:57.3]} 13... Re8 {[%clk 0:02:36.9]} 14.
h4 {[%clk 0:02:45.7]} 14... e5 {[%clk 0:02:24.9]} 15. dxe5 {[%clk 0:02:36.2]}
15... Nxe5 {[%clk 0:02:25.8]} 16. Bb5 {[%clk 0:02:20.5]} 16... Bd7 {[%clk
0:01:49]} 17. Bxd7 {[%clk 0:02:06.4]} 17... Qxd7 {[%clk 0:01:49.9]} 18. g3
{[%clk 0:02:03.5]} 18... Nxf3+ {[%clk 0:01:38.3]} 19. Qxf3 {[%clk 0:02:04.4]}
19... Bh6 {[%clk 0:01:36.9]} 20. h5 {[%clk 0:02:01.6]} 20... Bg7 {[%clk
0:01:15.3]} 21. Red1 {[%clk 0:01:49.5]} 21... Rad8 {[%clk 0:01:07.3]} 22. Ne3
{[%clk 0:01:48.5]} 22... Re5 {[%clk 0:00:56.1]} 23. h6 {[%clk 0:01:47.4]} 23...
Bh8 {[%clk 0:00:48.5]} 24. Rd3 {[%clk 0:01:40.3]} 24... Rh5 {[%clk 0:00:39.6]}
25. Rad1 {[%clk 0:01:33.3]} 25... d4 {[%clk 0:00:39.9]} 26. Ng4 {[%clk
0:01:09.4]} 26... Qe6 {[%clk 0:00:12.6]} 27. cxd4 {[%clk 0:00:59.3]} 27... Rg5
{[%clk 0:00:12.6]} 28. Ne5 {[%clk 0:00:54.1]} 28... Rh5 {[%clk 0:00:11]} 29. Re3
{[%clk 0:00:43.5]} 29... Rf5 {[%clk 0:00:08.1]} 30. Qxb7 {[%clk 0:00:28.9]}
30... Rxe5 {[%clk 0:00:07.5]} 31. Rxe5 {[%clk 0:00:27.7]} 31... Bxe5 {[%clk
0:00:08]} 32. Re1 {[%clk 0:00:28.3]} 32... Qxa2 {[%clk 0:00:01.7]} 33. Qe7
{[%clk 0:00:21.1]} 33... Rf8 {[%clk 0:00:01.3]} 34. Qxe5 {[%clk 0:00:20.1]}
34... f6 {[%clk 0:00:02]} 35. Qc7 {[%clk 0:00:19.3]} 1-0

[Event "Late-Titled-Tuesday-Blitz-October-17-2023"]
[Site "Chess.com"]
[Date "2023.10.17"]
[Round "4"]
[White "The_Machine04"]
[Black "Smiechu"]
[Result "1-0"]
[WhiteElo "2716"]
[BlackElo "2510"]
[TimeControl "180+1"]
[EndTime "14:38:40 PDT"]
[Termination "The_Machine04 won by resignation"]

1. d4 {[%clk 0:03:00.9]} 1... Nf6 {[%clk 0:02:59.1]} 2. Nf3 {[%clk 0:03:01.2]}
2... c5 {[%clk 0:02:59.6]} 3. e3 {[%clk 0:03:01.2]} 3... g6 {[%clk 0:02:59.2]}
4. Nbd2 {[%clk 0:03:01]} 4... d6 {[%clk 0:02:57.5]} 5. Be2 {[%clk 0:02:59.8]}
5... Bg7 {[%clk 0:02:57]} 6. O-O {[%clk 0:03:00.2]} 6... O-O {[%clk 0:02:57.5]}
7. b3 {[%clk 0:03:00.3]} 7... b6 {[%clk 0:02:57.6]} 8. Bb2 {[%clk 0:03:00.7]}
8... Bb7 {[%clk 0:02:57.7]} 9. c4 {[%clk 0:03:01.1]} 9... Ne4 {[%clk 0:02:52]}
10. Rb1 {[%clk 0:02:54.8]} 10... Nd7 {[%clk 0:02:43.8]} 11. Qc2 {[%clk
0:02:54.8]} 11... Nxd2 {[%clk 0:02:35.6]} 12. Nxd2 {[%clk 0:02:55.7]} 12... cxd4
{[%clk 0:02:26.2]} 13. exd4 {[%clk 0:02:56.6]} 13... e5 {[%clk 0:02:26.3]} 14.
Ne4 {[%clk 0:02:52.1]} 14... Nf6 {[%clk 0:02:01.7]} 15. Nxd6 {[%clk 0:02:20.6]}
15... Qxd6 {[%clk 0:01:47.2]} 16. dxe5 {[%clk 0:02:20.7]} 16... Be4 {[%clk
0:00:55.8]} 17. Qxe4 {[%clk 0:01:07.5]} 17... Nxe4 {[%clk 0:00:52.2]} 18. exd6
{[%clk 0:01:07.9]} 18... Nd2 {[%clk 0:00:50]} 19. Bxg7 {[%clk 0:01:07.9]} 19...
Kxg7 {[%clk 0:00:49.5]} 20. Rbd1 {[%clk 0:01:08.5]} 20... Nxf1 {[%clk
0:00:49.4]} 21. Kxf1 {[%clk 0:01:09.4]} 21... Rfd8 {[%clk 0:00:46.7]} 22. b4
{[%clk 0:01:09.3]} 22... Rac8 {[%clk 0:00:46.1]} 23. Rd5 {[%clk 0:01:09.3]}
23... a5 {[%clk 0:00:25.7]} 24. bxa5 {[%clk 0:01:08.2]} 24... Rc5 {[%clk
0:00:12.8]} 25. a6 {[%clk 0:00:14.4]} 25... Rxd5 {[%clk 0:00:10.8]} 26. cxd5
{[%clk 0:00:15.3]} 26... Rxd6 {[%clk 0:00:10.3]} 27. a7 {[%clk 0:00:15.6]} 27...
Rd8 {[%clk 0:00:10]} 28. d6 {[%clk 0:00:16.2]} 28... Ra8 {[%clk 0:00:05.9]} 29.
d7 {[%clk 0:00:16.1]} 29... Kf8 {[%clk 0:00:04.1]} 30. Bf3 {[%clk 0:00:16.5]}
30... Rd8 {[%clk 0:00:03]} 31. a8=Q {[%clk 0:00:16.5]} 31... Rxa8 {[%clk
0:00:03.6]} 32. Bxa8 {[%clk 0:00:17]} 32... Ke7 {[%clk 0:00:04.3]} 33. Bd5
{[%clk 0:00:17.4]} 33... Kxd7 {[%clk 0:00:03.2]} 34. Bxf7 {[%clk 0:00:17.7]}
34... Kc6 {[%clk 0:00:03.3]} 35. Bg8 {[%clk 0:00:18.6]} 35... h6 {[%clk
0:00:02.9]} 36. Bf7 {[%clk 0:00:19.2]} 36... g5 {[%clk 0:00:03.8]} 37. Ke2
{[%clk 0:00:19.6]} 37... Kb5 {[%clk 0:00:04.7]} 38. Kf3 {[%clk 0:00:19.9]} 38...
Kb4 {[%clk 0:00:05.6]} 39. Kg4 {[%clk 0:00:20.6]} 1-0

[Event "Late-Titled-Tuesday-Blitz-October-17-2023"]
[Site "Chess.com"]
[Date "2023.10.17"]
[Round "4"]
[White "krzyzan94"]
[Black "Zq1"]
[Result "0-1"]
[WhiteElo "2769"]
[BlackElo "2537"]
[TimeControl "180+1"]
[EndTime "14:38:42 PDT"]
[Termination "Zq1 won on time"]

1. e4 {[%clk 0:02:59.2]} 1... c5 {[%clk 0:02:59.3]} 2. Nf3 {[%clk 0:02:59]} 2...
d6 {[%clk 0:02:59.5]} 3. d4 {[%clk 0:02:59.1]} 3... cxd4 {[%clk 0:02:59.7]} 4.
Nxd4 {[%clk 0:03:00]} 4... Nf6 {[%clk 0:02:59.5]} 5. Nc3 {[%clk 0:03:00.5]} 5...
Nc6 {[%clk 0:02:59.7]} 6. Bc4 {[%clk 0:02:57.9]} 6... Bd7 {[%clk 0:02:59.4]} 7.
O-O {[%clk 0:02:48]} 7... g6 {[%clk 0:02:57.3]} 8. Nxc6 {[%clk 0:02:26.3]} 8...
Bxc6 {[%clk 0:02:56.4]} 9. Re1 {[%clk 0:02:27]} 9... Bg7 {[%clk 0:02:54.1]} 10.
a4 {[%clk 0:02:27]} 10... O-O {[%clk 0:02:51.9]} 11. a5 {[%clk 0:02:25.7]} 11...
Rc8 {[%clk 0:02:45.6]} 12. Bb3 {[%clk 0:02:22.3]} 12... Nd7 {[%clk 0:02:32]} 13.
Be3 {[%clk 0:02:20.7]} 13... Nc5 {[%clk 0:02:20.8]} 14. Bd5 {[%clk 0:02:11.6]}
14... e6 {[%clk 0:02:06.2]} 15. Bxc5 {[%clk 0:01:45.2]} 15... dxc5 {[%clk
0:01:45.2]} 16. Bxc6 {[%clk 0:01:44.7]} 16... Rxc6 {[%clk 0:01:45.2]} 17. e5
{[%clk 0:01:43]} 17... Qd4 {[%clk 0:01:40]} 18. Re4 {[%clk 0:01:37.3]} 18... Qd8
{[%clk 0:01:34]} 19. Qe2 {[%clk 0:01:33.5]} 19... Qc7 {[%clk 0:01:30.7]} 20. Nb5
{[%clk 0:01:26.8]} 20... Qb8 {[%clk 0:01:29.5]} 21. f4 {[%clk 0:01:26.1]} 21...
Rd8 {[%clk 0:01:24.3]} 22. Rd1 {[%clk 0:01:24.1]} 22... Bf8 {[%clk 0:01:15.9]}
23. Na3 {[%clk 0:00:50.1]} 23... Rcc8 {[%clk 0:01:08.2]} 24. Nc4 {[%clk
0:00:43.1]} 24... Rxd1+ {[%clk 0:01:02.6]} 25. Qxd1 {[%clk 0:00:44]} 25... Rd8
{[%clk 0:01:02.2]} 26. Qe1 {[%clk 0:00:37.6]} 26... b5 {[%clk 0:01:00.7]} 27.
axb6 {[%clk 0:00:37.5]} 27... axb6 {[%clk 0:01:00.3]} 28. Re2 {[%clk 0:00:37.7]}
28... Rd4 {[%clk 0:00:56.3]} 29. Re4 {[%clk 0:00:23.3]} 29... Qd8 {[%clk
0:00:53.9]} 30. Kf2 {[%clk 0:00:20.7]} 30... b5 {[%clk 0:00:48.6]} 31. Na3
{[%clk 0:00:14.7]} 31... c4 {[%clk 0:00:42.1]} 32. Nxb5 {[%clk 0:00:07.6]} 32...
Rxe4 {[%clk 0:00:36.2]} 33. Qxe4 {[%clk 0:00:08.5]} 33... Qb6+ {[%clk
0:00:34.7]} 34. Nd4 {[%clk 0:00:09.1]} 34... Bc5 {[%clk 0:00:30]} 35. c3 {[%clk
0:00:09.3]} 35... Qxb2+ {[%clk 0:00:28.7]} 36. Kf3 {[%clk 0:00:01.6]} 36...
Qxc3+ {[%clk 0:00:28.3]} 37. Kg4 {[%clk 0:00:01.7]} 37... Qxd4 {[%clk
0:00:27.5]} 38. Qa8+ {[%clk 0:00:01.8]} 38... Kg7 {[%clk 0:00:27.5]} 39. g3
{[%clk 0:00:02.3]} 39... h5+ {[%clk 0:00:25.7]} 40. Kh3 {[%clk 0:00:02.1]} 40...
Qd5 {[%clk 0:00:25.2]} 41. Qb8 {[%clk 0:00:01.4]} 41... c3 {[%clk 0:00:23.5]}
0-1

[Event "Late-Titled-Tuesday-Blitz-October-17-2023"]
[Site "Chess.com"]
[Date "2023.10.17"]
[Round "4"]
[White "Sacbutt"]
[Black "Nick12772"]
[Result "1-0"]
[WhiteElo "2224"]
[BlackElo "2378"]
[TimeControl "180+1"]
[EndTime "14:38:44 PDT"]
[Termination "Sacbutt won by resignation"]

1. e4 {[%clk 0:03:00.9]} 1... e6 {[%clk 0:03:00.4]} 2. d4 {[%clk 0:02:59.8]}
2... d5 {[%clk 0:03:01.3]} 3. e5 {[%clk 0:02:59.4]} 3... c5 {[%clk 0:03:01.3]}
4. c3 {[%clk 0:03:00]} 4... Bd7 {[%clk 0:03:01.9]} 5. Nf3 {[%clk 0:02:58.4]}
5... Qb6 {[%clk 0:03:02.3]} 6. a4 {[%clk 0:02:58.4]} 6... c4 {[%clk 0:02:57.7]}
7. Nbd2 {[%clk 0:02:52.1]} 7... Nc6 {[%clk 0:02:54.3]} 8. b4 {[%clk 0:02:45]}
8... cxb3 {[%clk 0:02:52.6]} 9. Qxb3 {[%clk 0:02:43.3]} 9... Qxb3 {[%clk
0:02:46.5]} 10. Nxb3 {[%clk 0:02:44.2]} 10... Rc8 {[%clk 0:02:39.9]} 11. Bd3
{[%clk 0:02:39.7]} 11... g6 {[%clk 0:02:24.3]} 12. h4 {[%clk 0:02:35.9]} 12...
h5 {[%clk 0:02:24.4]} 13. O-O {[%clk 0:02:30.8]} 13... Nh6 {[%clk 0:02:24.2]}
14. Ba3 {[%clk 0:02:14]} 14... Be7 {[%clk 0:02:17.5]} 15. Rfc1 {[%clk
0:02:09.1]} 15... b6 {[%clk 0:02:14.1]} 16. Ba6 {[%clk 0:02:05.6]} 16... Rc7
{[%clk 0:02:13.3]} 17. Bd6 {[%clk 0:02:03.3]} 17... Nb8 {[%clk 0:01:41]} 18.
Bxc7 {[%clk 0:01:50.2]} 18... Nxa6 {[%clk 0:01:41.2]} 19. Bd6 {[%clk 0:01:47.7]}
19... Bxd6 {[%clk 0:01:37.5]} 20. exd6 {[%clk 0:01:48.6]} 20... Nf5 {[%clk
0:01:37.8]} 21. a5 {[%clk 0:01:44.8]} 21... b5 {[%clk 0:01:33.1]} 22. Nc5 {[%clk
0:01:44.1]} 22... Nb8 {[%clk 0:01:28.4]} 23. a6 {[%clk 0:00:56.7]} 23... Nxd6
{[%clk 0:01:25.6]} 24. Ne5 {[%clk 0:00:56.4]} 24... Bc8 {[%clk 0:01:18.4]} 25.
Nb7 {[%clk 0:00:55.7]} 25... Nf5 {[%clk 0:00:59.2]} 26. Rcb1 {[%clk 0:00:47.9]}
26... Nxh4 {[%clk 0:00:38.2]} 27. Rxb5 {[%clk 0:00:46.2]} 27... O-O {[%clk
0:00:38.4]} 28. Nc5 {[%clk 0:00:40.4]} 28... f6 {[%clk 0:00:27.6]} 29. Rxb8
{[%clk 0:00:29.9]} 29... fxe5 {[%clk 0:00:27.6]} 30. dxe5 {[%clk 0:00:28.4]}
30... Nf5 {[%clk 0:00:26.7]} 31. Rab1 {[%clk 0:00:23.2]} 31... Ne7 {[%clk
0:00:26.5]} 32. R1b7 {[%clk 0:00:18.3]} 32... Nc6 {[%clk 0:00:26.7]} 33. Rxc8
{[%clk 0:00:13.1]} 33... Rxc8 {[%clk 0:00:25.6]} 34. Nxe6 {[%clk 0:00:13.5]}
34... Nxe5 {[%clk 0:00:18.2]} 35. Rxa7 {[%clk 0:00:13.1]} 35... Rxc3 {[%clk
0:00:18.7]} 36. Rg7+ {[%clk 0:00:11.4]} 36... Kh8 {[%clk 0:00:18.5]} 37. a7
{[%clk 0:00:11]} 37... Ra3 {[%clk 0:00:18]} 38. Re7 {[%clk 0:00:10.4]} 38... Nc6
{[%clk 0:00:17.8]} 39. Re8+ {[%clk 0:00:10.4]} 39... Kh7 {[%clk 0:00:17.4]} 40.
a8=Q {[%clk 0:00:11]} 40... Rxa8 {[%clk 0:00:17.7]} 41. Rxa8 {[%clk 0:00:11.8]}
41... d4 {[%clk 0:00:15.7]} 42. Rc8 {[%clk 0:00:09.5]} 42... Ne7 {[%clk
0:00:13.4]} 43. Rc7 {[%clk 0:00:09]} 1-0